[Event "Titled Tuesday Blitz January 17 Early 2023"]
[White "Tasev, Dejan"]
[Black "Leiva, Gianmarco"]
[WhiteFideId "936618"]
[BlackFideId "3804399"]
[WhiteElo "2205"]
[BlackElo "2392"]
[Result "0-1"]
[Round "06"]
[TimeControl "180+2"]
[Date "2023.01.17"]
[WhiteClock "0:00:13"]
[BlackClock "0:00:10"]

1. e4 {[%clk 0:03:00]}  c5 {[%clk 0:02:52]} 2. Nf3 {[%clk 0:03:00]}  d6 {[%clk 0:02:52]} 3. Nc3 {[%clk 0:03:00]}  Nf6 {[%clk 0:02:51]} 4. d4 {[%clk 0:03:00]}  cxd4 {[%clk 0:02:51]} 5. Nxd4 {[%clk 0:03:01]}  a6 {[%clk 0:02:52]} 6. Bc4 {[%clk 0:03:00]}  e6 {[%clk 0:02:52]} 7. Bb3 {[%clk 0:02:59]}  b5 {[%clk 0:02:53]} 8. a3 {[%clk 0:02:59]}  Be7 {[%clk 0:02:51]} 9. f3 {[%clk 0:02:58]}  O-O {[%clk 0:02:49]} 10. Be3 {[%clk 0:02:58]}  Bd7 {[%clk 0:02:39]} 11. Qd2 {[%clk 0:02:58]}  Nc6 {[%clk 0:02:39]} 12. O-O {[%clk 0:02:57]}  Ne5 {[%clk 0:02:34]} 13. f4 {[%clk 0:02:47]}  Neg4 {[%clk 0:02:33]} 14. Kh1 {[%clk 0:02:42]}  Nxe3 {[%clk 0:02:33]} 15. Qxe3 {[%clk 0:02:41]}  Qb6 {[%clk 0:02:28]} 16. Qd3 {[%clk 0:02:28]}  Rad8 {[%clk 0:01:49]} 17. Rad1 {[%clk 0:02:27]}  Bc8 {[%clk 0:01:47]} 18. f5 {[%clk 0:02:27]}  e5 {[%clk 0:01:17]} 19. Nde2 {[%clk 0:02:16]}  Bb7 {[%clk 0:01:15]} 20. Ng3 {[%clk 0:02:13]}  Rc8 {[%clk 0:01:14]} 21. Qf3 {[%clk 0:02:02]}  Kh8 {[%clk 0:01:03]} 22. Nh5 {[%clk 0:01:48]}  Rxc3 {[%clk 0:01:02]} 23. bxc3 {[%clk 0:01:46]}  Nxe4 {[%clk 0:01:02]} 24. Bd5 {[%clk 0:01:10]}  Bxd5 {[%clk 0:00:29]} 25. Rxd5 {[%clk 0:01:09]}  Nf6 {[%clk 0:00:26]} 26. Nxf6 {[%clk 0:01:09]}  Bxf6 {[%clk 0:00:24]} 27. Rfd1 {[%clk 0:01:09]}  Qa5 {[%clk 0:00:20]} 28. Rxd6 {[%clk 0:01:03]}  Qxa3 {[%clk 0:00:20]} 29. h3 {[%clk 0:00:58]}  a5 {[%clk 0:00:18]} 30. Qc6 {[%clk 0:00:52]}  Be7 {[%clk 0:00:11]} 31. Rd7 {[%clk 0:00:47]}  h5 {[%clk 0:00:06]} 32. Qxb5 {[%clk 0:00:44]}  Bf6 {[%clk 0:00:06]} 33. Qc6 {[%clk 0:00:41]}  Qa2 {[%clk 0:00:04]} 34. Qf3 {[%clk 0:00:37]}  h4 {[%clk 0:00:03]} 35. Qe4 {[%clk 0:00:29]}  Kg8 {[%clk 0:00:03]} 36. R7d6 {[%clk 0:00:28]}  Be7 {[%clk 0:00:02]} 37. R6d5 {[%clk 0:00:28]}  Bf6 {[%clk 0:00:02]} 38. c4 {[%clk 0:00:26]}  a4 {[%clk 0:00:02]} 39. c5 {[%clk 0:00:26]}  a3 {[%clk 0:00:02]} 40. c6 {[%clk 0:00:26]}  Qb2 {[%clk 0:00:02]} 41. Ra5 {[%clk 0:00:25]}  Qc3 {[%clk 0:00:02]} 42. Qa4 {[%clk 0:00:20]}  Rc8 {[%clk 0:00:02]} 43. Qxa3 {[%clk 0:00:19]}  Qxc6 {[%clk 0:00:02]} 44. Qb3 {[%clk 0:00:18]}  Qxc2 {[%clk 0:00:03]} 45. Qxc2 {[%clk 0:00:18]}  Rxc2 {[%clk 0:00:03]} 46. Ra8+ {[%clk 0:00:15]}  Kh7 {[%clk 0:00:03]} 47. Ra4 {[%clk 0:00:16]}  Rf2 {[%clk 0:00:03]} 48. Kg1 {[%clk 0:00:15]}  Rxf5 {[%clk 0:00:04]} 49. Rf1 {[%clk 0:00:16]}  Rh5 {[%clk 0:00:04]} 50. Rg4 {[%clk 0:00:16]}  Rh6 {[%clk 0:00:04]} 51. Rf5 {[%clk 0:00:15]}  Kg8 {[%clk 0:00:04]} 52. Kf2 {[%clk 0:00:16]}  Kf8 {[%clk 0:00:04]} 53. Ke3 {[%clk 0:00:16]}  Rh8 {[%clk 0:00:04]} 54. Ke4 {[%clk 0:00:16]}  Ke7 {[%clk 0:00:05]} 55. Rf2 {[%clk 0:00:16]}  Rd8 {[%clk 0:00:05]} 56. Re2 {[%clk 0:00:15]}  Rd4+ {[%clk 0:00:05]} 57. Kf3 {[%clk 0:00:16]}  Rd3+ {[%clk 0:00:05]} 58. Kf2 {[%clk 0:00:15]}  Ke6 {[%clk 0:00:04]} 59. Ra4 {[%clk 0:00:15]}  Kf5 {[%clk 0:00:04]} 60. Re3 {[%clk 0:00:16]}  Rd7 {[%clk 0:00:04]} 61. Rf3+ {[%clk 0:00:16]}  Kg6 {[%clk 0:00:04]} 62. Rg4+ {[%clk 0:00:16]}  Kh7 {[%clk 0:00:04]} 63. Rf5 {[%clk 0:00:16]}  Rd2+ {[%clk 0:00:04]} 64. Ke3 {[%clk 0:00:16]}  Rb2 {[%clk 0:00:04]} 65. Kf3 {[%clk 0:00:16]}  Rb3+ {[%clk 0:00:04]} 66. Ke4 {[%clk 0:00:16]}  Ra3 {[%clk 0:00:03]} 67. Rf3 {[%clk 0:00:15]}  Ra4+ {[%clk 0:00:04]} 68. Ke3 {[%clk 0:00:16]}  Ra3+ {[%clk 0:00:04]} 69. Kf2 {[%clk 0:00:16]}  Ra2+ {[%clk 0:00:04]} 70. Kg1 {[%clk 0:00:16]}  Kh6 {[%clk 0:00:05]} 71. Rf2 {[%clk 0:00:16]}  Ra1+ {[%clk 0:00:05]} 72. Rf1 {[%clk 0:00:16]}  Ra2 {[%clk 0:00:05]} 73. Kh2 {[%clk 0:00:16]}  Re2 {[%clk 0:00:05]} 74. Rf5 {[%clk 0:00:16]}  Kh7 {[%clk 0:00:05]} 75. Kh1 {[%clk 0:00:17]}  Re1+ {[%clk 0:00:05]} 76. Kh2 {[%clk 0:00:17]}  Kh6 {[%clk 0:00:05]} 77. g3 {[%clk 0:00:16]}  Re2+ {[%clk 0:00:05]} 78. Kg1 {[%clk 0:00:16]}  Re3 {[%clk 0:00:04]} 79. Kf2 {[%clk 0:00:16]}  Ra3 {[%clk 0:00:04]} 80. gxh4 {[%clk 0:00:16]}  Rxh3 {[%clk 0:00:05]} 81. Kg2 {[%clk 0:00:15]}  Ra3 {[%clk 0:00:05]} 82. h5 {[%clk 0:00:15]}  Ra2+ {[%clk 0:00:05]} 83. Kh3 {[%clk 0:00:15]}  Ra6 {[%clk 0:00:06]} 84. Rg3 {[%clk 0:00:15]}  Ra4 {[%clk 0:00:06]} 85. Rg4 {[%clk 0:00:15]}  Ra3+ {[%clk 0:00:06]} 86. Kg2 {[%clk 0:00:16]}  Ra2+ {[%clk 0:00:06]} 87. Rf2 {[%clk 0:00:16]}  Rxf2+ {[%clk 0:00:06]} 88. Kxf2 {[%clk 0:00:17]}  Kxh5 {[%clk 0:00:07]} 89. Ra4 {[%clk 0:00:17]}  Kg6 {[%clk 0:00:07]} 90. Kf3 {[%clk 0:00:18]}  Kf5 {[%clk 0:00:07]} 91. Ra7 {[%clk 0:00:17]}  Kg6 {[%clk 0:00:07]} 92. Ke4 {[%clk 0:00:17]}  Bg5 {[%clk 0:00:04]} 93. Kxe5 {[%clk 0:00:15]}  Be3 {[%clk 0:00:04]} 94. Ra6+ {[%clk 0:00:15]}  Kh7 {[%clk 0:00:04]} 95. Ke4 {[%clk 0:00:15]}  Bg5 {[%clk 0:00:04]} 96. Ra7 {[%clk 0:00:15]}  Kg6 {[%clk 0:00:04]} 97. Ra6+ {[%clk 0:00:15]}  Bf6 {[%clk 0:00:05]} 98. Kd5 {[%clk 0:00:15]}  Kf5 {[%clk 0:00:05]} 99. Ra2 {[%clk 0:00:14]}  g5 {[%clk 0:00:05]} 100. Rf2+ {[%clk 0:00:14]}  Kg6 {[%clk 0:00:05]} 101. Ke4 {[%clk 0:00:15]}  Bg7 {[%clk 0:00:04]} 102. Ra2 {[%clk 0:00:15]}  f5+ {[%clk 0:00:04]} 103. Kf3 {[%clk 0:00:15]}  Be5 {[%clk 0:00:04]} 104. Ra8 {[%clk 0:00:15]}  g4+ {[%clk 0:00:04]} 105. Kg2 {[%clk 0:00:15]}  f4 {[%clk 0:00:04]} 106. Ra5 {[%clk 0:00:14]}  Kf5 {[%clk 0:00:05]} 107. Ra4 {[%clk 0:00:15]}  f3+ {[%clk 0:00:04]} 108. Kf2 {[%clk 0:00:15]}  Bd6 {[%clk 0:00:03]} 109. Rc4 {[%clk 0:00:15]}  Be5 {[%clk 0:00:02]} 110. Rb4 {[%clk 0:00:15]}  Bf4 {[%clk 0:00:02]} 111. Rb5+ {[%clk 0:00:15]}  Be5 {[%clk 0:00:02]} 112. Rb4 {[%clk 0:00:15]}  Kg5 {[%clk 0:00:03]} 113. Rc4 {[%clk 0:00:15]}  Bb8 {[%clk 0:00:02]} 114. Re4 {[%clk 0:00:15]}  Ba7+ {[%clk 0:00:02]} 115. Kg3 {[%clk 0:00:15]}  Bb8+ {[%clk 0:00:03]} 116. Kf2 {[%clk 0:00:15]}  Kf5 {[%clk 0:00:03]} 117. Rc4 {[%clk 0:00:15]}  Ba7+ {[%clk 0:00:04]} 118. Kg3 {[%clk 0:00:15]}  Bb8+ {[%clk 0:00:04]} 119. Kf2 {[%clk 0:00:15]}  Bd6 {[%clk 0:00:04]} 120. Ra4 {[%clk 0:00:15]}  Bc5+ {[%clk 0:00:03]} 121. Kg3 {[%clk 0:00:15]}  Bd6+ {[%clk 0:00:03]} 122. Kf2 {[%clk 0:00:15]}  Be5 {[%clk 0:00:04]} 123. Rc4 {[%clk 0:00:15]}  Bf6 {[%clk 0:00:04]} 124. Rc5+ {[%clk 0:00:14]}  Ke4 {[%clk 0:00:03]} 125. Rc4+ {[%clk 0:00:14]}  Bd4+ {[%clk 0:00:03]} 126. Kg3 {[%clk 0:00:14]}  Kd3 {[%clk 0:00:02]} 127. Ra4 {[%clk 0:00:13]}  f2 {[%clk 0:00:02]} 128. Kg2 {[%clk 0:00:12]}  Ke2 {[%clk 0:00:02]} 129. Ra2+ {[%clk 0:00:12]}  Ke1 {[%clk 0:00:02]} 130. Rxf2 {[%clk 0:00:05]}  Bxf2 {[%clk 0:00:03]} 131. Kh1 {[%clk 0:00:05]}  Ke2 {[%clk 0:00:04]} 132. Kg2 {[%clk 0:00:06]}  Ke3 {[%clk 0:00:04]} 133. Kh1 {[%clk 0:00:07]}  Kf4 {[%clk 0:00:05]} 134. Kg2 {[%clk 0:00:08]}  Bd4 {[%clk 0:00:06]} 135. Kh1 {[%clk 0:00:09]}  Bf6 {[%clk 0:00:06]} 136. Kg2 {[%clk 0:00:10]}  g3 {[%clk 0:00:07]} 137. Kf1 {[%clk 0:00:11]}  Kg4 {[%clk 0:00:08]} 138. Kg2 {[%clk 0:00:12]}  Bg7 {[%clk 0:00:08]} 139. Kf1 {[%clk 0:00:13]}  Kf3 {[%clk 0:00:09]} 140. Kg1 {[%clk 0:00:13]}  g2 {[%clk 0:00:10]} 0-1


[Site "https://www.chess.com"]

[Event "Titled Tuesday Blitz January 17 Early 2023"]
[White "Skatchkov, Valery"]
[Black "Bychkov, Vladimir"]
[WhiteFideId "24195812"]
[BlackFideId "24151513"]
[WhiteElo "2167"]
[BlackElo "2225"]
[Result "1-0"]
[Round "06"]
[TimeControl "180+2"]
[Date "2023.01.17"]
[WhiteClock "0:00:46"]
[BlackClock "0:00:26"]

1. d4 {[%clk 0:03:00]}  Nf6 {[%clk 0:02:58]} 2. c4 {[%clk 0:03:00]}  e6 {[%clk 0:02:56]} 3. Nc3 {[%clk 0:02:58]}  Bb4 {[%clk 0:02:57]} 4. a3 {[%clk 0:02:59]}  Bxc3+ {[%clk 0:02:57]} 5. bxc3 {[%clk 0:02:58]}  c5 {[%clk 0:02:57]} 6. f3 {[%clk 0:02:58]}  b6 {[%clk 0:02:57]} 7. e4 {[%clk 0:02:57]}  d6 {[%clk 0:02:58]} 8. Bd3 {[%clk 0:02:54]}  Nc6 {[%clk 0:02:54]} 9. Ne2 {[%clk 0:02:51]}  Na5 {[%clk 0:02:45]} 10. O-O {[%clk 0:02:48]}  Ba6 {[%clk 0:02:45]} 11. Bg5 {[%clk 0:02:47]}  h6 {[%clk 0:02:40]} 12. Bh4 {[%clk 0:02:47]}  g5 {[%clk 0:02:35]} 13. Bg3 {[%clk 0:02:46]}  Nh5 {[%clk 0:02:33]} 14. f4 {[%clk 0:02:35]}  Qe7 {[%clk 0:02:21]} 15. f5 {[%clk 0:01:58]}  Nxg3 {[%clk 0:02:16]} 16. Nxg3 {[%clk 0:01:57]}  e5 {[%clk 0:02:16]} 17. f6 {[%clk 0:01:56]}  Qe6 {[%clk 0:02:12]} 18. Nf5 {[%clk 0:01:52]}  O-O-O {[%clk 0:02:11]} 19. Ne7+ {[%clk 0:01:48]}  Kb7 {[%clk 0:02:07]} 20. Qh5 {[%clk 0:01:37]}  Bxc4 {[%clk 0:01:53]} 21. d5 {[%clk 0:01:37]}  Qd7 {[%clk 0:01:48]} 22. Bxc4 {[%clk 0:01:32]}  Nxc4 {[%clk 0:01:49]} 23. Qxf7 {[%clk 0:01:33]}  Nd2 {[%clk 0:01:44]} 24. Rfe1 {[%clk 0:01:29]}  Rdf8 {[%clk 0:01:39]} 25. Qg7 {[%clk 0:01:27]}  Ka6 {[%clk 0:01:14]} 26. Ng6 {[%clk 0:01:24]}  Qe8 {[%clk 0:00:56]} 27. f7 {[%clk 0:01:19]}  Qd8 {[%clk 0:00:47]} 28. Rad1 {[%clk 0:01:18]}  Nc4 {[%clk 0:00:45]} 29. Rf1 {[%clk 0:01:17]}  Ne3 {[%clk 0:00:37]} 30. Nxh8 {[%clk 0:01:16]}  Nxd1 {[%clk 0:00:34]} 31. Ng6 {[%clk 0:01:15]}  Ne3 {[%clk 0:00:32]} 32. Qxf8 {[%clk 0:01:06]}  Qd7 {[%clk 0:00:30]} 33. h3 {[%clk 0:00:57]}  Qb5 {[%clk 0:00:29]} 34. Qc8+ {[%clk 0:00:49]}  Ka5 {[%clk 0:00:28]} 35. f8=Q {[%clk 0:00:50]}  Qe2 {[%clk 0:00:26]} 36. Qf2 {[%clk 0:00:46]} 1-0


[Site "https://www.chess.com"]

[Event "Titled Tuesday Blitz January 17 Early 2023"]
[White "I_KID_you_not"]
[Black "Donskov, Anatoly"]
[BlackFideId "24143413"]
[WhiteElo "2332"]
[BlackElo "2279"]
[Result "0-1"]
[Round "06"]
[TimeControl "180+2"]
[Date "2023.01.17"]
[WhiteClock "0:00:17"]
[BlackClock "0:00:05"]

1. e4 {[%clk 0:03:00]}  c5 {[%clk 0:02:58]} 2. Nc3 {[%clk 0:03:00]}  e6 {[%clk 0:02:57]} 3. Nge2 {[%clk 0:02:59]}  Nc6 {[%clk 0:02:57]} 4. g3 {[%clk 0:02:59]}  d5 {[%clk 0:02:48]} 5. exd5 {[%clk 0:02:59]}  exd5 {[%clk 0:02:48]} 6. d4 {[%clk 0:02:59]}  Nf6 {[%clk 0:02:47]} 7. Bg2 {[%clk 0:02:58]}  h6 {[%clk 0:02:41]} 8. O-O {[%clk 0:02:55]}  Be7 {[%clk 0:02:28]} 9. h3 {[%clk 0:02:42]}  O-O {[%clk 0:02:27]} 10. Be3 {[%clk 0:02:42]}  cxd4 {[%clk 0:02:16]} 11. Nxd4 {[%clk 0:02:42]}  Be6 {[%clk 0:02:16]} 12. Qd2 {[%clk 0:02:32]}  Ne5 {[%clk 0:02:12]} 13. Kh2 {[%clk 0:02:18]}  Nc4 {[%clk 0:01:56]} 14. Qc1 {[%clk 0:02:13]}  Rc8 {[%clk 0:01:54]} 15. Nce2 {[%clk 0:01:52]}  Re8 {[%clk 0:01:41]} 16. b3 {[%clk 0:01:50]}  Ba3 {[%clk 0:01:34]} 17. Qd1 {[%clk 0:01:45]}  Nxe3 {[%clk 0:01:30]} 18. fxe3 {[%clk 0:01:45]}  Ne4 {[%clk 0:01:25]} 19. Nf4 {[%clk 0:01:36]}  Qg5 {[%clk 0:01:15]} 20. Rf3 {[%clk 0:01:19]}  Bb2 {[%clk 0:01:03]} 21. Nd3 {[%clk 0:00:49]}  Bxa1 {[%clk 0:00:55]} 22. Qxa1 {[%clk 0:00:49]}  Nd2 {[%clk 0:00:49]} 23. Rf2 {[%clk 0:00:46]}  Ne4 {[%clk 0:00:30]} 24. Rf3 {[%clk 0:00:44]}  Bd7 {[%clk 0:00:28]} 25. h4 {[%clk 0:00:33]}  Qg6 {[%clk 0:00:21]} 26. Nf4 {[%clk 0:00:32]}  Qd6 {[%clk 0:00:17]} 27. Qd1 {[%clk 0:00:27]}  Bg4 {[%clk 0:00:16]} 28. Qd3 {[%clk 0:00:27]}  Bxf3 {[%clk 0:00:16]} 29. Bxf3 {[%clk 0:00:27]}  Nf6 {[%clk 0:00:13]} 30. Qf5 {[%clk 0:00:27]}  Rcd8 {[%clk 0:00:11]} 31. g4 {[%clk 0:00:26]}  Rxe3 {[%clk 0:00:11]} 32. g5 {[%clk 0:00:27]}  Qd7 {[%clk 0:00:06]} 33. gxf6 {[%clk 0:00:23]}  Qxf5 {[%clk 0:00:06]} 34. Nxf5 {[%clk 0:00:24]}  Rxf3 {[%clk 0:00:06]} 35. Ne7+ {[%clk 0:00:23]}  Kf8 {[%clk 0:00:06]} 36. Nfxd5 {[%clk 0:00:24]}  gxf6 {[%clk 0:00:04]} 37. Kg2 {[%clk 0:00:24]}  Rc3 {[%clk 0:00:02]} 38. Nxc3 {[%clk 0:00:21]}  Kxe7 {[%clk 0:00:02]} 39. Ne4 {[%clk 0:00:21]}  f5 {[%clk 0:00:02]} 40. Nc5 {[%clk 0:00:20]}  Rd2+ {[%clk 0:00:03]} 41. Kf3 {[%clk 0:00:19]}  Rxc2 {[%clk 0:00:03]} 42. Nxb7 {[%clk 0:00:19]}  Rxa2 {[%clk 0:00:04]} 43. Nc5 {[%clk 0:00:19]}  Kf6 {[%clk 0:00:04]} 44. Nd3 {[%clk 0:00:18]}  Ra3 {[%clk 0:00:04]} 45. Nc5 {[%clk 0:00:18]}  a5 {[%clk 0:00:03]} 46. Kf4 {[%clk 0:00:18]}  Kg6 {[%clk 0:00:03]} 47. h5+ {[%clk 0:00:18]}  Kxh5 {[%clk 0:00:03]} 48. Kxf5 {[%clk 0:00:19]}  Kh4 {[%clk 0:00:04]} 49. Kf4 {[%clk 0:00:18]}  f6 {[%clk 0:00:03]} 50. Ke4 {[%clk 0:00:17]}  Kg4 {[%clk 0:00:03]} 51. Kd4 {[%clk 0:00:17]}  h5 {[%clk 0:00:04]} 52. Kc4 {[%clk 0:00:17]}  h4 {[%clk 0:00:04]} 53. b4 {[%clk 0:00:17]}  axb4 {[%clk 0:00:04]} 54. Kxb4 {[%clk 0:00:18]}  Ra1 {[%clk 0:00:05]} 55. Kc3 {[%clk 0:00:17]}  Rc1+ {[%clk 0:00:04]} 56. Kb2 {[%clk 0:00:17]}  Rxc5 {[%clk 0:00:05]} 0-1


[Site "https://www.chess.com"]

[Event "Titled Tuesday Blitz January 17 Early 2023"]
[White "Dimitrov, Atanas"]
[Black "Goldin, Alexander"]
[WhiteFideId "2901315"]
[BlackFideId "2019540"]
[WhiteElo "2269"]
[BlackElo "2542"]
[Result "1/2-1/2"]
[Round "06"]
[TimeControl "180+2"]
[Date "2023.01.17"]
[WhiteClock "0:00:07"]
[BlackClock "0:00:23"]

1. Nf3 {[%clk 0:03:00]}  Nf6 {[%clk 0:02:59]} 2. c4 {[%clk 0:03:01]}  e6 {[%clk 0:02:58]} 3. Nc3 {[%clk 0:03:01]}  d5 {[%clk 0:02:58]} 4. e3 {[%clk 0:03:02]}  b6 {[%clk 0:02:57]} 5. b3 {[%clk 0:03:00]}  Bb7 {[%clk 0:02:56]} 6. Bb2 {[%clk 0:03:00]}  Nbd7 {[%clk 0:02:55]} 7. Be2 {[%clk 0:03:00]}  a6 {[%clk 0:02:53]} 8. O-O {[%clk 0:03:00]}  Bd6 {[%clk 0:02:53]} 9. d4 {[%clk 0:03:01]}  O-O {[%clk 0:02:51]} 10. Rc1 {[%clk 0:02:57]}  Qe7 {[%clk 0:02:50]} 11. Re1 {[%clk 0:02:54]}  Ne4 {[%clk 0:02:41]} 12. Qc2 {[%clk 0:02:45]}  f5 {[%clk 0:02:38]} 13. cxd5 {[%clk 0:02:07]}  exd5 {[%clk 0:02:37]} 14. Nxe4 {[%clk 0:01:53]}  fxe4 {[%clk 0:02:36]} 15. Ne5 {[%clk 0:01:52]}  Bxe5 {[%clk 0:02:01]} 16. dxe5 {[%clk 0:01:53]}  c5 {[%clk 0:01:57]} 17. Qc3 {[%clk 0:01:51]}  Rae8 {[%clk 0:01:47]} 18. e6 {[%clk 0:01:28]}  Nf6 {[%clk 0:01:46]} 19. Qe5 {[%clk 0:01:26]}  Qxe6 {[%clk 0:01:44]} 20. Qxe6+ {[%clk 0:01:21]}  Rxe6 {[%clk 0:01:44]} 21. Red1 {[%clk 0:01:21]}  Rd8 {[%clk 0:01:29]} 22. a4 {[%clk 0:01:17]}  a5 {[%clk 0:01:28]} 23. Rd2 {[%clk 0:01:03]}  Kf7 {[%clk 0:01:23]} 24. h3 {[%clk 0:01:02]}  g6 {[%clk 0:01:16]} 25. Rcd1 {[%clk 0:00:58]}  Red6 {[%clk 0:01:16]} 26. Be5 {[%clk 0:00:55]}  Re6 {[%clk 0:01:16]} 27. Bb2 {[%clk 0:00:52]}  h5 {[%clk 0:01:15]} 28. Bc4 {[%clk 0:00:42]}  Red6 {[%clk 0:01:06]} 29. Be2 {[%clk 0:00:40]}  Bc6 {[%clk 0:01:04]} 30. g4 {[%clk 0:00:37]}  hxg4 {[%clk 0:01:03]} 31. hxg4 {[%clk 0:00:38]}  g5 {[%clk 0:00:59]} 32. Be5 {[%clk 0:00:36]}  Re6 {[%clk 0:00:57]} 33. Bc7 {[%clk 0:00:36]}  Rh8 {[%clk 0:00:53]} 34. Bxb6 {[%clk 0:00:35]}  Nd7 {[%clk 0:00:52]} 35. Bxa5 {[%clk 0:00:26]}  Reh6 {[%clk 0:00:52]} 36. Rxd5 {[%clk 0:00:06]}  Bxd5 {[%clk 0:00:45]} 37. Rxd5 {[%clk 0:00:07]}  Rh1+ {[%clk 0:00:30]} 38. Kg2 {[%clk 0:00:07]}  R8h2+ {[%clk 0:00:28]} 39. Kg3 {[%clk 0:00:08]}  Rh3+ {[%clk 0:00:28]} 40. Kg2 {[%clk 0:00:08]}  Nf6 {[%clk 0:00:27]} 41. Rxg5 {[%clk 0:00:06]}  R1h2+ {[%clk 0:00:26]} 42. Kg1 {[%clk 0:00:05]}  Rh1+ {[%clk 0:00:27]} 43. Kg2 {[%clk 0:00:06]}  R1h2+ {[%clk 0:00:23]} 44. Kg1 {[%clk 0:00:06]}  Rh1+ {[%clk 0:00:23]} 45. Kg2 {[%clk 0:00:07]} 1/2-1/2


[Site "https://www.chess.com"]

[Event "Titled Tuesday Blitz January 17 Early 2023"]
[White "Rozman, Levy"]
[Black "Balabayeva, Xeniya"]
[WhiteFideId "2039877"]
[BlackFideId "13719688"]
[WhiteElo "2322"]
[BlackElo "2191"]
[Result "1-0"]
[Round "06"]
[TimeControl "180+2"]
[Date "2023.01.17"]
[WhiteClock "0:02:06"]
[BlackClock "0:00:02"]

1. e4 {[%clk 0:03:00]}  c5 {[%clk 0:02:57]} 2. a3 {[%clk 0:03:01]}  Nc6 {[%clk 0:02:56]} 3. b4 {[%clk 0:03:01]}  cxb4 {[%clk 0:02:56]} 4. axb4 {[%clk 0:03:02]}  Nxb4 {[%clk 0:02:49]} 5. c3 {[%clk 0:02:56]}  Nc6 {[%clk 0:02:48]} 6. d4 {[%clk 0:02:57]}  d5 {[%clk 0:02:44]} 7. exd5 {[%clk 0:02:58]}  Qxd5 {[%clk 0:02:44]} 8. Na3 {[%clk 0:02:59]}  Nf6 {[%clk 0:02:33]} 9. Nb5 {[%clk 0:02:59]}  Qd8 {[%clk 0:02:32]} 10. d5 {[%clk 0:02:59]}  Ne5 {[%clk 0:02:16]} 11. Bf4 {[%clk 0:02:58]}  Nfd7 {[%clk 0:02:15]} 12. Qd4 {[%clk 0:02:58]}  f6 {[%clk 0:02:00]} 13. Nf3 {[%clk 0:02:57]}  a5 {[%clk 0:00:51]} 14. Nxe5 {[%clk 0:02:34]}  fxe5 {[%clk 0:00:36]} 15. Bxe5 {[%clk 0:02:27]}  Nxe5 {[%clk 0:00:33]} 16. Qxe5 {[%clk 0:02:27]}  Bd7 {[%clk 0:00:32]} 17. Nc7+ {[%clk 0:02:25]}  Kf7 {[%clk 0:00:32]} 18. Bc4 {[%clk 0:02:20]}  b5 {[%clk 0:00:22]} 19. Ba2 {[%clk 0:02:09]}  h6 {[%clk 0:00:03]} 20. d6+ {[%clk 0:02:07]}  e6 {[%clk 0:00:02]} 21. Bxe6+ {[%clk 0:02:06]}  Kg6 {[%clk 0:00:02]} 22. Qf5# {[%clk 0:02:06]} 1-0


[Site "https://www.chess.com"]

[Event "Titled Tuesday Blitz January 17 Early 2023"]
[White "Gauri, Shankar"]
[Black "Bosnjak, Petar"]
[WhiteFideId "5041350"]
[BlackFideId "14532581"]
[WhiteElo "2360"]
[BlackElo "2337"]
[Result "0-1"]
[Round "06"]
[TimeControl "180+2"]
[Date "2023.01.17"]
[WhiteClock "0:00:02"]
[BlackClock "0:01:07"]

1. Nf3 {[%clk 0:03:00]}  c6 {[%clk 0:03:00]} 2. g3 {[%clk 0:03:00]}  d5 {[%clk 0:03:01]} 3. Bg2 {[%clk 0:03:00]}  Nf6 {[%clk 0:03:02]} 4. O-O {[%clk 0:03:00]}  Bg4 {[%clk 0:03:03]} 5. h3 {[%clk 0:02:59]}  Bh5 {[%clk 0:03:03]} 6. c4 {[%clk 0:02:55]}  e6 {[%clk 0:03:03]} 7. Qb3 {[%clk 0:02:51]}  Qb6 {[%clk 0:03:03]} 8. d3 {[%clk 0:02:48]}  Nbd7 {[%clk 0:03:03]} 9. Be3 {[%clk 0:02:41]}  Bc5 {[%clk 0:03:02]} 10. d4 {[%clk 0:02:39]}  Be7 {[%clk 0:02:59]} 11. Nc3 {[%clk 0:02:32]}  O-O {[%clk 0:02:57]} 12. c5 {[%clk 0:02:21]}  Qxb3 {[%clk 0:02:55]} 13. axb3 {[%clk 0:02:22]}  a6 {[%clk 0:02:53]} 14. b4 {[%clk 0:02:19]}  Rfe8 {[%clk 0:02:49]} 15. Nh4 {[%clk 0:02:11]}  Bg6 {[%clk 0:02:49]} 16. Nxg6 {[%clk 0:02:06]}  hxg6 {[%clk 0:02:50]} 17. f4 {[%clk 0:02:00]}  Nh7 {[%clk 0:02:50]} 18. Bf2 {[%clk 0:01:56]}  f5 {[%clk 0:02:48]} 19. g4 {[%clk 0:01:53]}  Nhf6 {[%clk 0:02:47]} 20. e3 {[%clk 0:01:40]}  Kf7 {[%clk 0:02:46]} 21. Bf3 {[%clk 0:01:37]}  Rh8 {[%clk 0:02:45]} 22. Kg2 {[%clk 0:01:37]}  Ne4 {[%clk 0:02:45]} 23. Rh1 {[%clk 0:01:26]}  Ndf6 {[%clk 0:02:35]} 24. g5 {[%clk 0:01:23]}  Nh5 {[%clk 0:02:22]} 25. Nxe4 {[%clk 0:01:20]}  dxe4 {[%clk 0:02:17]} 26. Be2 {[%clk 0:01:20]}  Rac8 {[%clk 0:02:16]} 27. Bc4 {[%clk 0:01:19]}  Bd8 {[%clk 0:02:14]} 28. Bb3 {[%clk 0:01:10]}  Bc7 {[%clk 0:02:14]} 29. h4 {[%clk 0:00:46]}  Ke7 {[%clk 0:02:14]} 30. Be1 {[%clk 0:00:42]}  Rh7 {[%clk 0:02:08]} 31. Rf1 {[%clk 0:00:42]}  Rd8 {[%clk 0:02:04]} 32. Bc4 {[%clk 0:00:39]}  Rhh8 {[%clk 0:01:58]} 33. Bb3 {[%clk 0:00:38]}  Bb8 {[%clk 0:01:28]} 34. Bc3 {[%clk 0:00:37]}  Nxf4+ {[%clk 0:01:26]} 35. exf4 {[%clk 0:00:36]}  Rxh4 {[%clk 0:01:26]} 36. Rh1 {[%clk 0:00:26]}  Rg4+ {[%clk 0:01:24]} 37. Kf2 {[%clk 0:00:27]}  Rxf4+ {[%clk 0:01:23]} 38. Ke2 {[%clk 0:00:28]}  Rg4 {[%clk 0:01:22]} 39. Rh7 {[%clk 0:00:26]}  Rg8 {[%clk 0:01:19]} 40. d5 {[%clk 0:00:24]}  exd5 {[%clk 0:01:20]} 41. Bxg7 {[%clk 0:00:23]}  Ke6 {[%clk 0:01:19]} 42. Bf6 {[%clk 0:00:23]}  f4 {[%clk 0:01:19]} 43. Rxb7 {[%clk 0:00:18]}  Kf5 {[%clk 0:01:18]} 44. Rxa6 {[%clk 0:00:16]}  Rg3 {[%clk 0:01:17]} 45. Ba4 {[%clk 0:00:12]}  f3+ {[%clk 0:01:16]} 46. Ke3 {[%clk 0:00:12]}  Bf4+ {[%clk 0:01:15]} 47. Kd4 {[%clk 0:00:12]}  f2 {[%clk 0:01:14]} 48. Bc2 {[%clk 0:00:10]}  f1=Q {[%clk 0:01:11]} 49. Bxe4+ {[%clk 0:00:02]}  dxe4 {[%clk 0:01:07]} 0-1


[Site "https://www.chess.com"]